[Event "Early-Titled-Tuesday-Blitz-October-24-2023"]
[Site "Chess.com"]
[Date "2023.10.24"]
[Round "2"]
[White "PenguiinQueen"]
[Black "mbachez"]
[Result "0-1"]
[WhiteElo "2200"]
[BlackElo "2469"]
[TimeControl "180+1"]
[EndTime "8:14:54 PDT"]
[Termination "mbachez won by resignation"]

1. e4 {[%clk 0:03:00.9]} 1... c6 {[%clk 0:02:58.6]} 2. Nc3 {[%clk 0:02:58.4]}
2... d5 {[%clk 0:02:58.6]} 3. Nf3 {[%clk 0:02:58.4]} 3... Bg4 {[%clk 0:02:56.5]}
4. h3 {[%clk 0:02:58]} 4... Bxf3 {[%clk 0:02:56.6]} 5. Qxf3 {[%clk 0:02:58.9]}
5... e6 {[%clk 0:02:57.1]} 6. d4 {[%clk 0:02:50.5]} 6... dxe4 {[%clk 0:02:51.9]}
7. Nxe4 {[%clk 0:02:46.4]} 7... Qxd4 {[%clk 0:02:50.7]} 8. Bd3 {[%clk
0:02:35.8]} 8... Nf6 {[%clk 0:02:50]} 9. O-O {[%clk 0:02:32.9]} 9... Nxe4 {[%clk
0:02:48.9]} 10. Bxe4 {[%clk 0:02:32.4]} 10... Nd7 {[%clk 0:02:36.3]} 11. Rd1
{[%clk 0:02:31.8]} 11... Qf6 {[%clk 0:02:34.1]} 12. Qb3 {[%clk 0:02:12.2]} 12...
Nc5 {[%clk 0:02:32.6]} 13. Qc4 {[%clk 0:01:44.1]} 13... Nxe4 {[%clk 0:02:31.4]}
14. Qxe4 {[%clk 0:01:45]} 14... Bc5 {[%clk 0:02:30.7]} 15. Be3 {[%clk
0:01:42.8]} 15... Bxe3 {[%clk 0:02:30.5]} 16. Qxe3 {[%clk 0:01:43.2]} 16... O-O
{[%clk 0:02:30.7]} 17. Qb3 {[%clk 0:01:38.9]} 17... b6 {[%clk 0:02:24.8]} 18.
Rd6 {[%clk 0:01:37.6]} 18... c5 {[%clk 0:02:12.8]} 19. Rad1 {[%clk 0:01:31.5]}
19... Rfd8 {[%clk 0:02:11.3]} 20. Qb5 {[%clk 0:01:24.3]} 20... Rxd6 {[%clk
0:02:07.8]} 21. Rxd6 {[%clk 0:01:25.2]} 21... Rd8 {[%clk 0:01:50.5]} 22. a4
{[%clk 0:01:20.1]} 22... g6 {[%clk 0:01:43.8]} 23. Rxd8+ {[%clk 0:01:16]} 23...
Qxd8 {[%clk 0:01:42.9]} 24. a5 {[%clk 0:01:16.9]} 24... Qd1+ {[%clk 0:01:33.9]}
25. Kh2 {[%clk 0:01:16.3]} 25... Qd6+ {[%clk 0:01:32.2]} 26. g3 {[%clk
0:01:14.8]} 26... Qd2 {[%clk 0:01:28.5]} 27. Kg2 {[%clk 0:01:11.9]} 27... Qxa5
{[%clk 0:01:26.6]} 28. Qxa5 {[%clk 0:01:01.9]} 28... bxa5 {[%clk 0:01:25.8]} 29.
Kf3 {[%clk 0:00:59.9]} 29... Kf8 {[%clk 0:01:22.7]} 30. Ke4 {[%clk 0:00:59.5]}
30... Ke7 {[%clk 0:01:22.1]} 31. Kd3 {[%clk 0:00:59.6]} 31... Kd6 {[%clk
0:01:21.9]} 32. Kc4 {[%clk 0:00:59.8]} 32... a6 {[%clk 0:01:17.9]} 0-1

[Event "Early-Titled-Tuesday-Blitz-October-24-2023"]
[Site "Chess.com"]
[Date "2023.10.24"]
[Round "2"]
[White "AnaKuchava"]
[Black "gueraumasague"]
[Result "0-1"]
[WhiteElo "2244"]
[BlackElo "2496"]
[TimeControl "180+1"]
[EndTime "8:14:58 PDT"]
[Termination "gueraumasague won by resignation"]

1. d4 {[%clk 0:03:00.9]} 1... g6 {[%clk 0:03:00.9]} 2. c4 {[%clk 0:03:00.1]}
2... Bg7 {[%clk 0:03:01.6]} 3. Nf3 {[%clk 0:02:59.4]} 3... c5 {[%clk 0:03:01.8]}
4. d5 {[%clk 0:02:58.7]} 4... f5 {[%clk 0:03:02.1]} 5. Qc2 {[%clk 0:02:57.7]}
5... Na6 {[%clk 0:02:57.3]} 6. a3 {[%clk 0:02:57.2]} 6... d6 {[%clk 0:02:56.5]}
7. Nc3 {[%clk 0:02:54.4]} 7... Nf6 {[%clk 0:02:56.8]} 8. e4 {[%clk 0:02:47.2]}
8... fxe4 {[%clk 0:02:57]} 9. Nxe4 {[%clk 0:02:48]} 9... Nxe4 {[%clk 0:02:51.7]}
10. Qxe4 {[%clk 0:02:48.9]} 10... O-O {[%clk 0:02:51.7]} 11. Be2 {[%clk
0:02:45.8]} 11... Bf5 {[%clk 0:02:45.4]} 12. Qe3 {[%clk 0:02:43.8]} 12... Nc7
{[%clk 0:02:40.9]} 13. a4 {[%clk 0:02:14.6]} 13... e6 {[%clk 0:02:37.2]} 14.
dxe6 {[%clk 0:02:08.5]} 14... Nxe6 {[%clk 0:02:35.5]} 15. O-O {[%clk 0:02:07.9]}
15... Qd7 {[%clk 0:02:28.7]} 16. Rd1 {[%clk 0:01:52.6]} 16... Rae8 {[%clk
0:02:28.3]} 17. Qd2 {[%clk 0:01:37.7]} 17... Nd4 {[%clk 0:01:53.1]} 18. Nxd4
{[%clk 0:01:32.7]} 18... Bxd4 {[%clk 0:01:54]} 19. Bf3 {[%clk 0:01:31.5]} 19...
Bg4 {[%clk 0:01:54.7]} 20. Bd5+ {[%clk 0:01:28.2]} 20... Kh8 {[%clk 0:01:54.6]}
21. Rf1 {[%clk 0:01:13.5]} 21... Be2 {[%clk 0:01:13.1]} 0-1

[Event "Early-Titled-Tuesday-Blitz-October-24-2023"]
[Site "Chess.com"]
[Date "2023.10.24"]
[Round "2"]
[White "DavidLana1987"]
[Black "Drags95"]
[Result "1-0"]
[WhiteElo "2595"]
[BlackElo "2824"]
[TimeControl "180+1"]
[EndTime "8:15:11 PDT"]
[Termination "DavidLana1987 won by resignation"]

1. e4 {[%clk 0:03:00.9]} 1... e5 {[%clk 0:02:56.2]} 2. Nf3 {[%clk 0:03:00.8]}
2... Nc6 {[%clk 0:02:56.7]} 3. Bb5 {[%clk 0:03:00.2]} 3... a6 {[%clk 0:02:56.9]}
4. Bxc6 {[%clk 0:03:00.5]} 4... dxc6 {[%clk 0:02:57.2]} 5. O-O {[%clk
0:03:01.4]} 5... Bd6 {[%clk 0:02:54.9]} 6. d4 {[%clk 0:03:01.1]} 6... exd4
{[%clk 0:02:55.4]} 7. Qxd4 {[%clk 0:03:01.8]} 7... f6 {[%clk 0:02:55.9]} 8. Rd1
{[%clk 0:03:01.5]} 8... Ne7 {[%clk 0:02:49.4]} 9. Bf4 {[%clk 0:03:00.7]} 9... c5
{[%clk 0:02:39.8]} 10. Qd2 {[%clk 0:02:58.4]} 10... Nc6 {[%clk 0:02:28.6]} 11.
Bxd6 {[%clk 0:02:58.2]} 11... cxd6 {[%clk 0:02:29.5]} 12. Qxd6 {[%clk
0:02:58.8]} 12... Qxd6 {[%clk 0:02:30.2]} 13. Rxd6 {[%clk 0:02:59.2]} 13... Ke7
{[%clk 0:02:30.9]} 14. Rd2 {[%clk 0:02:56.6]} 14... Bg4 {[%clk 0:02:28.8]} 15.
Nc3 {[%clk 0:02:52.6]} 15... Bxf3 {[%clk 0:02:26.9]} 16. Nd5+ {[%clk 0:02:51.3]}
16... Kf7 {[%clk 0:02:26]} 17. gxf3 {[%clk 0:02:52]} 17... Ne5 {[%clk 0:02:25]}
18. Kg2 {[%clk 0:02:49.7]} 18... Nc4 {[%clk 0:02:24.8]} 19. Re2 {[%clk
0:02:49.6]} 19... Rad8 {[%clk 0:02:21.8]} 20. b3 {[%clk 0:02:48.7]} 20... Ne5
{[%clk 0:02:22]} 21. Rd1 {[%clk 0:02:48]} 21... Rhe8 {[%clk 0:02:21.1]} 22. Red2
{[%clk 0:02:48.1]} 22... Nc6 {[%clk 0:02:16.9]} 23. c3 {[%clk 0:02:46.6]} 23...
h5 {[%clk 0:02:13.8]} 24. Nf4 {[%clk 0:02:46.1]} 24... h4 {[%clk 0:01:59.8]} 25.
Rd7+ {[%clk 0:02:39.7]} 25... Rxd7 {[%clk 0:01:57.2]} 26. Rxd7+ {[%clk
0:02:39.5]} 26... Re7 {[%clk 0:01:57.9]} 27. Rxe7+ {[%clk 0:02:36.6]} 27... Nxe7
{[%clk 0:01:58.8]} 28. Kf1 {[%clk 0:02:34.2]} 28... g5 {[%clk 0:01:58.2]} 29.
Nd3 {[%clk 0:02:34.1]} 29... b6 {[%clk 0:01:56.5]} 30. Ke2 {[%clk 0:02:34.4]}
30... Ng6 {[%clk 0:01:53.4]} 31. Ke3 {[%clk 0:02:33.6]} 31... Ne5 {[%clk
0:01:46.3]} 32. Nb2 {[%clk 0:02:06.6]} 32... Ke6 {[%clk 0:01:39.9]} 33. h3
{[%clk 0:02:03.1]} 33... Kd6 {[%clk 0:01:36.4]} 34. f4 {[%clk 0:01:55.4]} 34...
Ng6 {[%clk 0:01:31.9]} 35. fxg5 {[%clk 0:01:55.1]} 35... fxg5 {[%clk 0:01:31.9]}
36. Nd3 {[%clk 0:01:55.8]} 36... b5 {[%clk 0:01:15.5]} 37. f4 {[%clk 0:01:53.7]}
37... gxf4+ {[%clk 0:01:16.4]} 38. Nxf4 {[%clk 0:01:54]} 38... Ne5 {[%clk
0:01:17.1]} 39. Ng2 {[%clk 0:01:49.8]} 39... Ng6 {[%clk 0:01:16.1]} 40. Nf4
{[%clk 0:01:50.1]} 40... Ne5 {[%clk 0:01:16.1]} 41. Nd3 {[%clk 0:01:50.4]} 41...
Ng6 {[%clk 0:01:15.6]} 42. c4 {[%clk 0:01:46.5]} 42... bxc4 {[%clk 0:01:09.1]}
43. bxc4 {[%clk 0:01:47.4]} 43... a5 {[%clk 0:01:09.7]} 44. Kf3 {[%clk
0:01:46.7]} 44... a4 {[%clk 0:00:45.8]} 45. a3 {[%clk 0:01:44]} 45... Ke6 {[%clk
0:00:42.6]} 46. Nf4+ {[%clk 0:01:42.5]} 46... Nxf4 {[%clk 0:00:40.4]} 47. Kxf4
{[%clk 0:01:43.4]} 1-0

[Event "Early-Titled-Tuesday-Blitz-October-24-2023"]
[Site "Chess.com"]
[Date "2023.10.24"]
[Round "2"]
[White "sebastianmarinp"]
[Black "Maxterlopez"]
[Result "1-0"]
[WhiteElo "2419"]
[BlackElo "2784"]
[TimeControl "180+1"]
[EndTime "8:15:13 PDT"]
[Termination "sebastianmarinp won on time"]

1. d4 {[%clk 0:03:00.2]} 1... Nf6 {[%clk 0:02:58.7]} 2. Nf3 {[%clk 0:02:59.9]}
2... g6 {[%clk 0:02:58.8]} 3. Bg5 {[%clk 0:02:57.6]} 3... Bg7 {[%clk 0:02:58.6]}
4. Nc3 {[%clk 0:02:57.9]} 4... d5 {[%clk 0:02:58.5]} 5. Bxf6 {[%clk 0:02:42.1]}
5... Bxf6 {[%clk 0:02:58]} 6. e4 {[%clk 0:02:41.1]} 6... dxe4 {[%clk 0:02:56.1]}
7. Nxe4 {[%clk 0:02:42]} 7... Bg7 {[%clk 0:02:56.8]} 8. h3 {[%clk 0:02:39.6]}
8... O-O {[%clk 0:02:53.6]} 9. Bc4 {[%clk 0:02:38.7]} 9... Nc6 {[%clk 0:02:49]}
10. c3 {[%clk 0:02:37.4]} 10... e5 {[%clk 0:02:41.1]} 11. dxe5 {[%clk
0:02:38.3]} 11... Nxe5 {[%clk 0:02:39.8]} 12. Nxe5 {[%clk 0:02:35]} 12... Bxe5
{[%clk 0:02:40.7]} 13. O-O {[%clk 0:02:32.9]} 13... Bf5 {[%clk 0:02:14.6]} 14.
Qf3 {[%clk 0:02:28.3]} 14... Qh4 {[%clk 0:02:06.7]} 15. Rfe1 {[%clk 0:02:24.5]}
15... Rae8 {[%clk 0:02:00.5]} 16. Bd3 {[%clk 0:02:08.6]} 16... Re7 {[%clk
0:01:57.6]} 17. Ng3 {[%clk 0:02:02.6]} 17... Bxd3 {[%clk 0:01:43.3]} 18. Qxd3
{[%clk 0:02:02]} 18... Rfe8 {[%clk 0:01:44]} 19. Re4 {[%clk 0:01:53.7]} 19...
Qf6 {[%clk 0:01:42.9]} 20. Rae1 {[%clk 0:01:50.9]} 20... h5 {[%clk 0:01:13.8]}
21. R1e3 {[%clk 0:01:49.7]} 21... h4 {[%clk 0:01:07.9]} 22. Nf1 {[%clk
0:01:49.6]} 22... Kg7 {[%clk 0:01:05.9]} 23. Qe2 {[%clk 0:01:45.6]} 23... Re6
{[%clk 0:01:04.8]} 24. Nd2 {[%clk 0:01:37.8]} 24... R6e7 {[%clk 0:00:48.7]} 25.
Nc4 {[%clk 0:01:34.6]} 1-0

[Event "Early-Titled-Tuesday-Blitz-October-24-2023"]
[Site "Chess.com"]
[Date "2023.10.24"]
[Round "2"]
[White "abhidabhi"]
[Black "PapiPapita"]
[Result "1-0"]
[WhiteElo "2880"]
[BlackElo "2575"]
[TimeControl "180+1"]
[EndTime "8:15:15 PDT"]
[Termination "abhidabhi won by resignation"]

1. Nf3 {[%clk 0:03:00.9]} 1... b6 {[%clk 0:02:59.3]} 2. e4 {[%clk 0:02:54.3]}
2... Bb7 {[%clk 0:03:00.2]} 3. Nc3 {[%clk 0:02:53.6]} 3... c5 {[%clk 0:02:58.1]}
4. d4 {[%clk 0:02:53.6]} 4... cxd4 {[%clk 0:02:59]} 5. Nxd4 {[%clk 0:02:53.3]}
5... e6 {[%clk 0:02:59.1]} 6. Be3 {[%clk 0:02:47]} 6... a6 {[%clk 0:02:54.1]} 7.
Qd2 {[%clk 0:02:45.6]} 7... Bb4 {[%clk 0:02:49.6]} 8. a3 {[%clk 0:02:44.1]} 8...
Be7 {[%clk 0:02:46.5]} 9. O-O-O {[%clk 0:02:43.4]} 9... d6 {[%clk 0:02:41]} 10.
g4 {[%clk 0:02:36.7]} 10... Nf6 {[%clk 0:02:37.9]} 11. f3 {[%clk 0:02:36.1]}
11... Qc7 {[%clk 0:02:34.5]} 12. h4 {[%clk 0:02:35.2]} 12... Nc6 {[%clk
0:02:22.1]} 13. Nxc6 {[%clk 0:02:28.9]} 13... Bxc6 {[%clk 0:02:19.1]} 14. g5
{[%clk 0:02:28.2]} 14... Nd7 {[%clk 0:02:18.5]} 15. h5 {[%clk 0:02:25.5]} 15...
b5 {[%clk 0:02:13.6]} 16. Rg1 {[%clk 0:02:17.3]} 16... Ne5 {[%clk 0:02:10.6]}
17. Be2 {[%clk 0:02:11]} 17... Rb8 {[%clk 0:02:01.2]} 18. f4 {[%clk 0:02:10.7]}
18... Nc4 {[%clk 0:02:00.2]} 19. Bxc4 {[%clk 0:02:10.7]} 19... bxc4 {[%clk
0:02:01.1]} 20. Qd4 {[%clk 0:02:09.4]} 20... Qb7 {[%clk 0:01:44.8]} 21. h6
{[%clk 0:02:00.2]} 21... Rg8 {[%clk 0:01:23.4]} 22. hxg7 {[%clk 0:01:58.4]}
22... Qxb2+ {[%clk 0:01:21.6]} 23. Kd2 {[%clk 0:01:58.1]} 23... e5 {[%clk
0:01:03.3]} 24. Qxc4 {[%clk 0:01:53.9]} 24... Qb7 {[%clk 0:00:40.7]} 25. Rb1
{[%clk 0:01:50.7]} 25... Bb5 {[%clk 0:00:41.2]} 26. Qd5 {[%clk 0:01:49.3]} 26...
Qc7 {[%clk 0:00:30.3]} 27. Nxb5 {[%clk 0:01:47.4]} 27... axb5 {[%clk 0:00:26.7]}
28. f5 {[%clk 0:01:36.1]} 28... Rc8 {[%clk 0:00:17.2]} 29. Qxb5+ {[%clk
0:01:35.3]} 29... Kd8 {[%clk 0:00:16.9]} 30. Bb6 {[%clk 0:01:35.3]} 1-0

[Event "Early-Titled-Tuesday-Blitz-October-24-2023"]
[Site "Chess.com"]
[Date "2023.10.24"]
[Round "2"]
[White "Sokoloco"]
[Black "SARGISMV"]
[Result "1-0"]
[WhiteElo "2709"]
[BlackElo "2423"]
[TimeControl "180+1"]
[EndTime "8:15:15 PDT"]
[Termination "Sokoloco won by resignation"]

1. b3 {[%clk 0:03:00.9]} 1... Nf6 {[%clk 0:02:59.6]} 2. Bb2 {[%clk 0:03:01.8]}
2... a5 {[%clk 0:02:59.4]} 3. e3 {[%clk 0:03:00.9]} 3... a4 {[%clk 0:02:58.9]}
4. b4 {[%clk 0:03:01.4]} 4... d6 {[%clk 0:02:53.1]} 5. a3 {[%clk 0:02:59.5]}
5... c5 {[%clk 0:02:50.6]} 6. b5 {[%clk 0:02:56.6]} 6... Nbd7 {[%clk 0:02:49.7]}
7. c4 {[%clk 0:02:55.6]} 7... Nb6 {[%clk 0:02:46.7]} 8. d4 {[%clk 0:02:52.8]}
8... Bf5 {[%clk 0:02:41.5]} 9. Nf3 {[%clk 0:02:43.8]} 9... e6 {[%clk 0:02:38.1]}
10. Bd3 {[%clk 0:02:28.5]} 10... Bxd3 {[%clk 0:02:34.2]} 11. Qxd3 {[%clk
0:02:29.4]} 11... Qc7 {[%clk 0:02:34.6]} 12. Nbd2 {[%clk 0:02:27.4]} 12... Be7
{[%clk 0:02:32]} 13. O-O {[%clk 0:02:04.6]} 13... O-O {[%clk 0:02:31]} 14. dxc5
{[%clk 0:02:00.6]} 14... Qxc5 {[%clk 0:02:24.6]} 15. Rac1 {[%clk 0:01:43.3]}
15... Rfd8 {[%clk 0:02:08.7]} 16. Ne4 {[%clk 0:01:35.4]} 16... Nxe4 {[%clk
0:01:49.8]} 17. Qxe4 {[%clk 0:01:36.3]} 17... d5 {[%clk 0:01:50]} 18. Qg4 {[%clk
0:01:30.9]} 18... Bf8 {[%clk 0:01:49.5]} 19. Bd4 {[%clk 0:01:17.4]} 19... Qc7
{[%clk 0:01:25.1]} 20. cxd5 {[%clk 0:01:17.7]} 20... Qd6 {[%clk 0:01:22]} 21.
Bc5 {[%clk 0:01:17.6]} 21... Qxc5 {[%clk 0:01:14.3]} 22. Rxc5 {[%clk 0:01:18.5]}
22... Bxc5 {[%clk 0:01:14.9]} 23. dxe6 {[%clk 0:01:19.2]} 23... Bxa3 {[%clk
0:01:05.6]} 24. exf7+ {[%clk 0:01:16.3]} 24... Kh8 {[%clk 0:01:01.6]} 25. Ng5
{[%clk 0:01:13.5]} 25... Rd6 {[%clk 0:00:54.9]} 26. Ne6 {[%clk 0:00:58.7]} 26...
Rxe6 {[%clk 0:00:45.6]} 27. Qxe6 {[%clk 0:00:59.6]} 27... Bf8 {[%clk 0:00:45.5]}
28. Qxb6 {[%clk 0:00:59.3]} 1-0

[Event "Early-Titled-Tuesday-Blitz-October-24-2023"]
[Site "Chess.com"]
[Date "2023.10.24"]
[Round "2"]
[White "Firouzja2003"]
[Black "El_Matador12"]
[Result "1-0"]
[WhiteElo "3095"]
[BlackElo "2622"]
[TimeControl "180+1"]
[EndTime "8:15:21 PDT"]
[Termination "Firouzja2003 won by resignation"]

1. d4 {[%clk 0:02:56.4]} 1... Nf6 {[%clk 0:02:56.1]} 2. Nc3 {[%clk 0:02:57.3]}
2... d5 {[%clk 0:02:55.6]} 3. Bf4 {[%clk 0:02:56.7]} 3... c6 {[%clk 0:02:55.1]}
4. e3 {[%clk 0:02:55.9]} 4... Qb6 {[%clk 0:02:54.3]} 5. a3 {[%clk 0:02:54]} 5...
Bf5 {[%clk 0:02:51.4]} 6. Nf3 {[%clk 0:02:54.1]} 6... e6 {[%clk 0:02:50.5]} 7.
b4 {[%clk 0:02:48]} 7... Be7 {[%clk 0:02:47.3]} 8. Ne5 {[%clk 0:02:47.7]} 8...
h5 {[%clk 0:02:23.9]} 9. Na4 {[%clk 0:02:47.6]} 9... Qd8 {[%clk 0:02:22.4]} 10.
Nc5 {[%clk 0:02:48.5]} 10... b6 {[%clk 0:02:14.5]} 11. Na6 {[%clk 0:02:47.8]}
11... Qc8 {[%clk 0:01:46.5]} 12. Nc7+ {[%clk 0:02:36.2]} 12... Qxc7 {[%clk
0:01:35.7]} 13. Nxf7 {[%clk 0:02:37]} 13... Qxf4 {[%clk 0:01:00.6]} 14. exf4
{[%clk 0:02:37.9]} 14... Kxf7 {[%clk 0:01:01.2]} 15. Bd3 {[%clk 0:02:38.3]}
15... Nbd7 {[%clk 0:01:00.5]} 16. O-O {[%clk 0:02:38.9]} 16... Bd6 {[%clk
0:01:00.6]} 17. g3 {[%clk 0:02:37.3]} 17... h4 {[%clk 0:01:00.2]} 18. Re1 {[%clk
0:02:35.1]} 18... hxg3 {[%clk 0:00:57.2]} 19. hxg3 {[%clk 0:02:36]} 19... Ne4
{[%clk 0:00:55.8]} 20. Qf3 {[%clk 0:02:36.4]} 20... Rh3 {[%clk 0:00:52.8]} 21.
Bxe4 {[%clk 0:02:34.6]} 21... dxe4 {[%clk 0:00:53.7]} 22. Rxe4 {[%clk
0:02:35.3]} 22... Bxe4 {[%clk 0:00:51.2]} 23. Qxe4 {[%clk 0:02:35.5]} 23... Nf6
{[%clk 0:00:49.4]} 24. Qxc6 {[%clk 0:02:35.3]} 24... Rah8 {[%clk 0:00:43.9]} 25.
Re1 {[%clk 0:02:27.4]} 25... Rh1+ {[%clk 0:00:32.7]} 26. Qxh1 {[%clk 0:02:26.9]}
26... Rxh1+ {[%clk 0:00:33.6]} 27. Kxh1 {[%clk 0:02:27.8]} 27... b5 {[%clk
0:00:33.5]} 28. Kg2 {[%clk 0:02:28]} 28... Nd5 {[%clk 0:00:32.2]} 29. Kf3 {[%clk
0:02:28.9]} 29... Bc7 {[%clk 0:00:26.8]} 30. Ke4 {[%clk 0:02:29.1]} 30... a5
{[%clk 0:00:22.7]} 31. Kd3 {[%clk 0:02:30]} 31... axb4 {[%clk 0:00:21.8]} 32.
axb4 {[%clk 0:02:30.9]} 32... Nxb4+ {[%clk 0:00:22.7]} 33. Kd2 {[%clk
0:02:31.5]} 33... Nd5 {[%clk 0:00:21.1]} 34. Ra1 {[%clk 0:02:32.1]} 34... Bb6
{[%clk 0:00:18.2]} 35. c3 {[%clk 0:02:31.7]} 35... b4 {[%clk 0:00:18.8]} 36. c4
{[%clk 0:02:30.8]} 36... Bxd4 {[%clk 0:00:18]} 37. Ra4 {[%clk 0:02:31.1]} 37...
Bc3+ {[%clk 0:00:16.8]} 38. Kd3 {[%clk 0:02:31.4]} 38... Nb6 {[%clk 0:00:16.5]}
39. Ra7+ {[%clk 0:02:30.5]} 39... Kf6 {[%clk 0:00:16.7]} 40. c5 {[%clk
0:02:30.5]} 40... Nd5 {[%clk 0:00:15.7]} 41. c6 {[%clk 0:02:31.2]} 41... b3
{[%clk 0:00:16.2]} 42. c7 {[%clk 0:02:31.1]} 42... b2 {[%clk 0:00:15.8]} 43. Rb7
{[%clk 0:02:27]} 43... Nb4+ {[%clk 0:00:14.2]} 44. Rxb4 {[%clk 0:02:24.3]} 44...
Bxb4 {[%clk 0:00:13.1]} 45. Kc2 {[%clk 0:02:21.8]} 1-0

[Event "Early-Titled-Tuesday-Blitz-October-24-2023"]
[Site "Chess.com"]
[Date "2023.10.24"]
[Round "2"]
[White "Ykow"]
[Black "DKmirl"]
[Result "1-0"]
[WhiteElo "2522"]
[BlackElo "2289"]
[TimeControl "180+1"]
[EndTime "8:15:22 PDT"]
[Termination "Ykow won by checkmate"]

1. g4 {[%clk 0:03:00.9]} 1... d5 {[%clk 0:02:54.9]} 2. c4 {[%clk 0:03:00.8]}
2... c6 {[%clk 0:02:53.4]} 3. Bg2 {[%clk 0:03:00.6]} 3... g6 {[%clk 0:02:52]} 4.
cxd5 {[%clk 0:02:58.9]} 4... cxd5 {[%clk 0:02:51.9]} 5. Nc3 {[%clk 0:02:58.4]}
5... e6 {[%clk 0:02:49.9]} 6. h4 {[%clk 0:02:57.3]} 6... h5 {[%clk 0:02:45.4]}
7. gxh5 {[%clk 0:02:54.9]} 7... Rxh5 {[%clk 0:02:45.2]} 8. Nf3 {[%clk
0:02:55.2]} 8... Be7 {[%clk 0:02:40.8]} 9. e4 {[%clk 0:02:54.9]} 9... Bxh4
{[%clk 0:02:18.2]} 10. exd5 {[%clk 0:02:53.2]} 10... Be7 {[%clk 0:01:54.8]} 11.
Rxh5 {[%clk 0:02:50.7]} 11... gxh5 {[%clk 0:01:54.3]} 12. dxe6 {[%clk
0:02:49.1]} 12... Bxe6 {[%clk 0:01:54.3]} 13. Ne5 {[%clk 0:02:49.4]} 13... Qc7
{[%clk 0:01:42.1]} 14. Qxh5 {[%clk 0:02:48.6]} 14... Nd7 {[%clk 0:01:35.6]} 15.
d4 {[%clk 0:02:42.2]} 15... Nxe5 {[%clk 0:01:27.7]} 16. Qxe5 {[%clk 0:02:43.1]}
16... Qxe5+ {[%clk 0:01:10.8]} 17. dxe5 {[%clk 0:02:44]} 17... O-O-O {[%clk
0:01:09.9]} 18. Be3 {[%clk 0:02:42]} 18... Kb8 {[%clk 0:01:07.6]} 19. Rd1 {[%clk
0:02:39.6]} 19... Rxd1+ {[%clk 0:01:02.4]} 20. Kxd1 {[%clk 0:02:40.5]} 20... Bb4
{[%clk 0:00:45.9]} 21. Nd5 {[%clk 0:02:39.7]} 21... Bf8 {[%clk 0:00:32.6]} 22.
a3 {[%clk 0:02:20.4]} 22... Ne7 {[%clk 0:00:29.7]} 23. Bc5 {[%clk 0:02:11.7]}
23... Nxd5 {[%clk 0:00:16.3]} 24. Bxf8 {[%clk 0:02:09.7]} 24... Nf4 {[%clk
0:00:16.2]} 25. Bd6+ {[%clk 0:02:08.8]} 25... Kc8 {[%clk 0:00:15.7]} 26. Bf1
{[%clk 0:02:09.7]} 26... Ng6 {[%clk 0:00:12.7]} 27. Kd2 {[%clk 0:02:09.5]} 27...
a6 {[%clk 0:00:11.3]} 28. Ke3 {[%clk 0:02:09.5]} 28... Kd7 {[%clk 0:00:11.1]}
29. f4 {[%clk 0:02:09.3]} 29... Ne7 {[%clk 0:00:09.9]} 30. Bxe7 {[%clk
0:02:08.3]} 30... Kxe7 {[%clk 0:00:09.9]} 31. Bd3 {[%clk 0:02:09.2]} 31... f6
{[%clk 0:00:08.7]} 32. Kd4 {[%clk 0:02:08.9]} 32... fxe5+ {[%clk 0:00:08.4]} 33.
Kxe5 {[%clk 0:02:09.8]} 33... Bd7 {[%clk 0:00:08.6]} 34. f5 {[%clk 0:02:10.7]}
34... Bc6 {[%clk 0:00:07.5]} 35. f6+ {[%clk 0:02:11.2]} 35... Kf8 {[%clk
0:00:07.6]} 36. Be4 {[%clk 0:02:11]} 36... Kf7 {[%clk 0:00:03.4]} 37. Bxc6
{[%clk 0:02:10.9]} 37... bxc6 {[%clk 0:00:04.3]} 38. b4 {[%clk 0:02:11.4]} 38...
Kf8 {[%clk 0:00:02.5]} 39. Ke6 {[%clk 0:02:11.1]} 39... Ke8 {[%clk 0:00:02.8]}
40. f7+ {[%clk 0:02:11.6]} 40... Kf8 {[%clk 0:00:03]} 41. Kf6 {[%clk 0:02:12.2]}
41... c5 {[%clk 0:00:02.8]} 42. bxc5 {[%clk 0:02:11.8]} 42... a5 {[%clk
0:00:03.1]} 43. c6 {[%clk 0:02:12.2]} 43... a4 {[%clk 0:00:03.5]} 44. Ke6 {[%clk
0:02:13.1]} 44... Kg7 {[%clk 0:00:03.4]} 45. c7 {[%clk 0:02:14]} 45... Kh7
{[%clk 0:00:03.2]} 46. c8=Q {[%clk 0:02:14.4]} 46... Kh6 {[%clk 0:00:03.4]} 47.
Qg8 {[%clk 0:02:13.6]} 47... Kh5 {[%clk 0:00:03.4]} 48. f8=Q {[%clk 0:02:14.1]}
48... Kh4 {[%clk 0:00:03.6]} 49. Qh6# {[%clk 0:02:14.9]} 1-0